Cogmind - Beta 13 @@@ ROGUE MODE // 2024.07.11 @ 14:24:23 Player: f3-rnm Result: Destroyed by G-47 Trooper with Particle Gun Performance ------------- Evolutions (0) 0 Regions Visited (2) 400 Robots Destroyed (29) 145 Value Destroyed (746) 746 Prototype IDs (0) 0 Alien Tech Used (0) 0 Bonus (0) 0 TOTAL SCORE: 1291 Bonus ------- None Cogmind --------- Core Integrity 0/250 Matter 288/300 Energy 263/265 System Corruption 0% Temperature Cool (9) Movement Treading (160) Location -10/Mines Parts ------- > --- POWER (1) -------- Improved Ion Engine > --- PROPULSION (2) --- Light Treads Improved Treads > --- UTILITY (2) ------ Improved Heat Sink Large Storage Unit > --- WEAPON (2) ------- Beam Cannon Assault Rifle > --- INVENTORY (15) --- Improved Ion Engine Light Nuclear Core Light Treads Improved Treads Improved Treads Improved Treads Compact Wheel Heat Sink High-capacity Matter Pod (151) Structural Scanner Structural Scanner Light Assault Rifle Light Assault Rifle Grenade Launcher Rocket Launcher Peak State ------------ > --- POWER ------------ Improved Ion Engine > --- PROPULSION ------- Light Treads Improved Treads > --- UTILITY ---------- Improved Heat Sink Large Storage Unit > --- WEAPON ----------- Beam Cannon Assault Rifle > --- INVENTORY -------- Improved Ion Engine Light Nuclear Core Light Treads Improved Treads Improved Treads Improved Treads Compact Wheel Heat Sink High-capacity Matter Pod Structural Scanner Structural Scanner Light Assault Rifle Light Assault Rifle Grenade Launcher [Rating: 13] Favorites ----------- Power Improved Ion Engine Engine Improved Ion Engine Propulsion Light Treads Treads Light Treads Utility Large Storage Unit Device Improved Heat Sink Storage Large Storage Unit Protection Power Shielding Weapon Light Assault Rifle Energy Cannon Beam Cannon Ballistic Gun Light Assault Rifle Launcher Grenade Launcher Build | -11 -10 -10 ------- Run | Yrd Mat Min Slots Evolved . | . . . Power . | . . . Propulsion . | . . . Utility . | . . . Weapon . | . . . Parts Attached 23 | 6 13 4 Power 2 | 1 1 . Engine 2 | 1 1 . Core . | . . . Reactor . | . . . Propulsion 5 | 2 2 1 Treads 5 | 2 2 1 Leg . | . . . Wheel . | . . . Hover . | . . . Flight . | . . . Utility 5 | 1 3 1 Device 1 | . . 1 Storage 3 | 1 2 . Processor . | . . . Hackware . | . . . Protection 1 | . 1 . Artifact . | . . . Weapon 11 | 2 7 2 Energy Gun . | . . . Energy Cannon 2 | . 1 1 Ballistic Gun 7 | 2 4 1 Ballistic Cannon . | . . . Launcher 2 | . 2 . Special Weapon . | . . . Impact Weapon . | . . . Slashing Weapon . | . . . Piercing Weapon . | . . . Special Melee Weapon . | . . . Unidentified Prototypes . | . . . Parts Lost 2 | . 1 1 Power . | . . . Propulsion 1 | . . 1 Utility . | . . . Weapon 1 | . 1 . Highest Loss Streak 1 | . 1 1 To Critical Strikes . | . . . Average Slot Usage (%) 98 | . 98 100 Engine 14 | . 14 14 Treads 28 | . 28 28 Device 3 | . . 12 Storage 14 | . 14 14 Protection 9 | . 12 1 Energy Cannon 5 | . 2 12 Ballistic Gun 22 | . 25 15 Naked Turns . | . . . Heaviest Build 33 | 13 32 33 Greatest Support 43 | 40 40 43 Greatest Overweight (x) 2 | 2 . . Average Overweight (x) . | . . . Largest Inventory Capacity 15 | 8 15 15 Average Capacity 13 | 7 13 15 Most Carried 15 | 2 15 15 Average Carried 12 | 1 12 14 Final Capacity 15 | 8 15 15 Final Carried 15 | 2 15 15 Class Distribution -------------------- 100% | Mutant Dominant Class ---------------- Mutant | -10/Materials Mutant | -10/Mines Resources | -11 -10 -10 ----------- Run | Yrd Mat Min Matter Collected 816 | 148 417 251 Remotely . | . . . Salvage Created 843 | . 564 279 Parts 59 | . 39 20 Haulers Intercepted 1 | . 1 . Recyclers Shooed 1 | . 1 . Parts Field Recycled . | . . . Retrieved Matter . | . . . Parts Self-Destructed . | . . . Prevented . | . . . Kills | -11 -10 -10 ------- Run | Yrd Mat Min Combat Hostiles Destroyed 25 | . 17 8 Guns 14 | . 9 5 Cannons 6 | . 3 3 AOE 5 | . 5 . Classes Destroyed 5 | . 5 . Hauler 1 | . 1 . Operator 1 | . 1 . Watcher 2 | . 2 . Swarmer 9 | . 6 3 Grunt 16 | . 11 5 Best Kill Streak 5 | . 5 2 Combat Bots Only 5 | . 5 2 Max Kills in Single Turn 4 | . 4 1 Gunslinging . | . . . Exploded 4 | . 4 . Melee . | . . . Uniques/NPCs Destroyed . | . . . Combat | -11 -10 -10 -------- Run | Yrd Mat Min Hostile Shots Fired 130 | . 89 41 Missed 29 | . 22 7 Damage Taken 1144 | . 747 397 Core 259 | . 183 76 Absorbed by Shields . | . . . Redirected to Shielding 1 | . 1 . Core Remaining (%) 100 | 100 . . Volleys Fired 88 | . 66 22 Largest 2 | . 2 2 Hottest 80 | . 80 80 Shots Fired 172 | . 128 44 Gun 133 | . 104 29 Cannon 35 | . 20 15 Launcher 4 | . 4 . Special . | . . . Kinetic 133 | . 104 29 Thermal 35 | . 20 15 Explosive 4 | . 4 . Electromagnetic . | . . . Robot Hit Streak 10 | . 8 10 Robot Miss Streak 5 | . 5 3 Penetration Max . | . . . Secondary Targets 2 | . 2 . Max Gunslinging Chain 1 | . 1 . Shots Hit Robots 109 | . 79 30 Core Hits 55 | . 41 14 Critical Kills . | . . . Critical Parts Destroyed . | . . . Critical Strikes . | . . . Melee Attacks . | . . . Impact . | . . . Slashing . | . . . Piercing . | . . . Sneak Attacks . | . . . Combat Hostiles . | . . . Follow-up Attacks . | . . . Damage Inflicted 1503 | . 1106 397 Guns 829 | . 629 200 Cannons 373 | . 176 197 Explosions 275 | . 275 . Melee . | . . . Ramming 26 | . 26 . Kinetic 829 | . 629 200 Thermal 373 | . 176 197 Explosive 275 | . 275 . Electromagnetic . | . . . Impact . | . . . Slashing . | . . . Piercing . | . . . Highest Corruption . | . . . Average Corruption . | . . . Corruption Purged . | . . . Corruption Blocked . | . . . Overload Shots . | . . . Overflow Damage 4 | . 4 . Projectiles . | . . . Explosions 4 | . 4 . Melee . | . . . Knockbacks . | . . . Impact . | . . . Kinetic . | . . . Secondary . | . . . Self-Inflicted Damage 4 | . 4 . Shots 1 | . 1 . Rammed 3 | . 2 1 Targets Rammed 4 | . 3 1 Kicked . | . . . Crushed 1 | . 1 . Highest Temperature 352 | . 352 47 Average Temperature 69 | . 76 21 Received Heat Transfer 504 | . 324 180 Siege Activations . | . . . Robots Corrupted . | . . . Combat Hostiles . | . . . Parts Fried . | . . . Impact Corruptions . | . . . Robots Melted . | . . . Combat Hostiles . | . . . Parts Melted . | . . . Heat Transferred 777 | . 370 407 Parts Sabotaged . | . . . Parts Stolen . | . . . Parts Stripped . | . . . Power Chain Reactions . | . . . Alert | -11 -10 -10 ------- Run | Yrd Mat Min Peak Influence 333 | . 333 221 Initial 31 | . . 31 Average 137 | . 143 140 Maximum Alert Level 1 | . 1 1 Low Security (%) 75 | 100 80 59 Level 1 24 | . 19 40 Level 2 . | . . . Level 3 . | . . . Level 4 . | . . . Level 5 . | . . . High Security . | . . . Max Security . | . . . Squads Dispatched 4 | . 4 . Investigation 2 | . 2 . Extermination . | . . . Reinforcement 2 | . 2 . Assault . | . . . Garrison . | . . . Intercept . | . . . Searches Triggered . | . . . Construction Impeded . | . . . Haulers Reinforced . | . . . Active Scanning Responses . | . . . Cargo Convoy Interrupts . | . . . Stealth | -11 -10 -10 --------- Run | Yrd Mat Min Distress Signals . | . . . Communications Jammed . | . . . Distress Signals . | . . . Times Spotted 33 | . 23 10 Peak Tracking Total 5 | . 5 3 Tactical Retreats 1 | . . 1 Traps | -11 -10 -10 ------- Run | Yrd Mat Min Traps Triggered 2 | . 2 . Indirectly . | . . . Trap Hack Attempts . | . . . Triggered . | . . . Disarmed . | . . . Reprogrammed . | . . . Reused . | . . . Traps Extracted . | . . . Installed . | . . . Triggered . | . . . Machines | -11 -10 -10 ---------- Run | Yrd Mat Min Machines Disabled 1 | . 1 . Max in Single Turn 1 | . 1 . Machines Repaired . | . . . Machines Dismantled . | . . . Machines Sabotaged . | . . . Overloaded Fab Kills . | . . . Hacking | -11 -10 -10 --------- Run | Yrd Mat Min Machines Accessed 2 | . 2 . Terminals 2 | . 2 . Fabricators . | . . . Repair Stations . | . . . Recycling Units . | . . . Scanalyzers . | . . . Garrison Access . | . . . Total Hacks 4 | . 4 . Successful 2 | . 2 . Failed 2 | . 2 . Catastrophic . | . . . Database Lockouts . | . . . Manual 2 | . 2 . Terminals 4 | . 4 . Fabricators . | . . . Repair Stations . | . . . Recycling Units . | . . . Scanalyzers . | . . . Garrison Access . | . . . Terminal Hacks 2 | . 2 . Robot Analysis 2 | . 2 . Fabricator Hacks . | . . . Repair Station Hacks . | . . . Recycling Unit Hacks . | . . . Scanalyzer . | . . . Garrison Access Hacks . | . . . Unauthorized Hacks . | . . . Terminals . | . . . Fabricators . | . . . Repair Stations . | . . . Recycling Units . | . . . Scanalyzers . | . . . Garrison Access . | . . . Data Cores Recovered . | . . . Used . | . . . Hacking Detections 2 | . 2 . Full Trace Events . | . . . Feedback Events . | . . . Feedback Blocked . | . . . Robot Schematics Acquired . | . . . Robots Built . | . . . Authchips . | . . . Time . | . . . Total Robot Build Rating . | . . . Part Schematics Acquired . | . . . Parts Built . | . . . Authchips . | . . . Time . | . . . Total Part Build Rating . | . . . Parts Repaired . | . . . Time . | . . . Parts Recycled . | . . . Recycled Matter . | . . . Retrieved Matter . | . . . Retrieved Components . | . . . Parts Scanalyzed . | . . . Part Schematics Acquired . | . . . Parts Damaged . | . . . Bothacking | -11 -10 -10 ------------ Run | Yrd Mat Min Used RIF Installer . | . . . Robots Hacked . | . . . Non-combat . | . . . Combat . | . . . Robot Hacks Applied . | . . . Relay Couplers Released . | . . . Fabnet Peak Effective % . | . . . Robots Rewired . | . . . Allies Hacked . | . . . Hacks Repelled . | . . . Allies | -11 -10 -10 -------- Run | Yrd Mat Min Total Allies . | . . . Largest Group . | . . . Highest-Rated Group . | . . . Highest-Rated Ally . | . . . Total Orders . | . . . Ally Attacks . | . . . Total Damage . | . . . Kills . | . . . Allies Corrupted . | . . . Allies Melted . | . . . Intel | -11 -10 -10 ------- Run | Yrd Mat Min Robot Analysis Total 2 | . 2 . Derelict Logs Recovered . | . . . Drone Launches . | . . . Drone Recoveries . | . . . Exploration | -11 -10 -10 ------------- Run | Yrd Mat Min Turns Passed 1784 | 72 1255 457 Spaces Moved 884 | 46 617 221 Core 11 | 11 . . Treads 873 | 35 617 221 Legs . | . . . Wheels . | . . . Hover . | . . . Flight . | . . . Fastest Speed 50 | 50 160 160 Average Speed 158 | 135 160 160 Slowest Speed 160 | 160 160 160 Overloaded Moves . | . . . Propulsion Burnouts . | . . . Robots Hopped . | . . . Cave-ins Triggered . | . . . Exploration Rate (%) 52 | 4 91 61 Regions Visited 2 Branch Regions 1 Pre-discovered Areas . | . . . Known Exits Taken . | . . . Unknown Exits Taken 2 | 1 1 . Scrap Searched 1 | . . 1 Spaces Dug . | . . . Terrain Destroyed 32 | . 32 . Melee . | . . . Projectile . | . . . AOE 32 | . 32 . Terrain Rammed . | . . . Walls Destroyed . | . . . Machines Disabled . | . . . Actions | -11 -10 -10 --------- Run | Yrd Mat Min Total 1109 | 53 772 284 Wait 76 | . 43 33 Move 882 | 45 616 221 Hop . | . . . Pick Up 25 | 2 21 2 Fast Attach 8 | 6 2 . Attach 6 | . 4 2 Detach . | . . . Swap 9 | . 7 2 Drop 11 | . 10 1 Fire 88 | . 66 22 Melee . | . . . Ram . | . . . Kick . | . . . Crush 4 | . 3 1 Escape Stasis . | . . . Rewire . | . . . Trap . | . . . Miscellaneous . | . . . Route ------- -11/Scrapyard -10/Materials (discovered 4 exits: [*Mat x3] / [*Min]) -10/Mines History --------- Turn | Location | Event 3 | -11/Scrapyard | Discovered new exit (range 15) 73 | -11/Scrapyard | Entered Materials 311 | -10/Materials | Build established: Mutant 504 | -10/Materials | Discovered new exit (range 9) 855 | -10/Materials | Discovered new exit (range 12) 973 | -10/Materials | Derelicts attacked the area 1025 | -10/Materials | Discovered new exit (range 16) 1147 | -10/Materials | Core integrity fell below 50% 1304 | -10/Materials | Discovered new exit (range 15) 1328 | -10/Materials | Entered Mines 1333 | -10/Mines | Core integrity fell below 20% 1682 | -10/Mines | Received a Rocket Launcher from a helpful Derelict 1785 | -10/Mines | Destroyed by G-47 Trooper with Particle Gun Last Messages --------------- 01548_ Acquired 20 matter. 01550_ Acquired 11 matter. 01572_ S-10 Pest destroyed. 01585_ Acquired 19 matter. 01610_ K-01 Serf collects debris. 01675_ A derelict emerges from the shadows. 01677_ 7S-JJJ(g): "Some of my friends down here think you need a mining laser when you travel the depths." 01678_ 7S-JJJ(g): "You know what I say? NO!" 01679_ 7S-JJJ(g): "Everyone knows a good old rocket launcher goes a long way." 01680_ 7S-JJJ(g): "Need to get rid of a swarm? Done. Need a big hole in the wall? Done." 01681_ 7S-JJJ(g): "Need a small hole in the wall? Leave that to the mining laser wimps, I say!" 01682_ 7S-JJJ(g): "Would you like a rocket launcher? I know I would if I were you, so I'm going to lend you mine." 01682_ 7S-JJJ(g) slips back into the shadows. 01689_ Acquired Rocket Launcher. 01784_ G-34 Mercenary destroyed. Map ----- +----------------------------------------------------+ | | | | | | | | | | | | | | | | | | | | | | | | | | | | | | | | | ????????????????????????????????????????????????? | | ????????????????????????????????????????????????? | | ????????????????????????????????????????????????? | | ???????????????????????????????#####????????????? | | ?????????????????????????????? #????????????? | | ????????????????????????##### """?????????????? | | #????#####?????????????# """#????????????? | | "?????# ##????????????#g """#????????????? | | "????## ##???????????#%### #????????????? | | ???### ###????######@#????????#????????????? | | ??## ###??# #?????????????????????? | | ?## #### #?????????????????????? | | ## #####?????????????????????? | | #?????????????????????????? | | ## ###########?????????????????????????? | | ?## #???????????????????????????????????? | | ??# #???????????????????????????????????? | | #???????????????????????????????????? | | #???????????????????????????????????? | | ## ##???????????????????????????????????? | | ?# ##????????????????????????????????????? | | ?## #?????????????????????????????????????? | | ??# #?????????????????????????????????????? | | ??# #?????????????????????????????????????? | | ?? ##?????????????????????????????????????? | | ? ##??????????????????????????????????????? | | ? #???????????????????????????????????????? | | ?? #???????????????????????????????????????? | | ?? ????????????????????????????????????????? | | ????????????????????????????????????????????????? | | ????????????????????????????????????????????????? | | ????????????????????????????????????????????????? | | ????????????????????????????????????????????????? | | ????????????????????????????????????????????????? | +----------------------------------------------------+ Best States ------------- Heat Dissipation 39 Energy Generation 12 Energy Capacity 265 Matter Stores 300 Matter Capacity 300 Sight Range 16 Terrain Scan Density 10 Power Shielding 33 Evasion (%) 50 Recoil Reduction 2 Item Schematics ----------------- None Robot Schematics ------------------ None Fabricated ------------ Nothing Alien Tech Used ----------------- None Achievements -------------- None Challenges ------------ None Game ------ Seed AuthchipOpticalNanosword Manual? 0 Play Time 00:10:08 Cumulative 191.9 hours Start 2024.07.10 @ 17:01:27 End 2024.07.11 @ 14:24:23 Sessions 2 Manual Loads 0 Difficulty Rogue Special Mode None Game No. 194 Rogue 158 Adventurer 36 Explorer 0 Win Type - Total 10 Types 3/0/7/0/0/0/0/0/0 Lore% 56 Gallery% 82 Achievement% 71 Wizard Run 0 Options --------- Layout 0 ASCII 0 Keyboard 0 Movement Mouse Keybinds 0 Fullscreen 1 Font 18/SmallcapsGlow Map View 76x50 Zoom Use 0% Tactical HUD 1 Map Filters NONE Filters NONE Steam 1 RUN: b165a830-1086-4ed8-a58b-7aab3ea5f058